lending/lending_fUSD_20250130
["ID","MTS","AMOUNT","RATE_DAILY","PERIOD"]
[350922141,1738199438540,-500.0,0.00019965,2]
[350922143,1738199438550,-500.0,0.00019965,2]
[350922145,1738199438561,-500.0,0.00019965,2]
[350922147,1738199438570,-599.83347972,0.00019965,2]
[350922149,1738199438579,-500.0,0.00019965,2]
[350922151,1738199438589,-500.0,0.00019965,2]
[350922153,1738199438601,-500.0,0.00019965,2]
[350922155,1738199438611,-500.0,0.00019965,2]
[350922157,1738199438620,-500.0,0.00019965,2]
[350922159,1738199438629,-150.0,0.00019968,2]
[350922161,1738199438638,-150.0,0.00019969,2]
[350922163,1738199438648,-150.0,0.0001997,2]
[350922165,1738199438658,-500.0,0.0001997,2]
[350922167,1738199438668,-150.0,0.00019971,2]
[350922169,1738199438678,-203.72841073,0.00019971,2]
[350922171,1738199438687,-150.0,0.00019972,2]
[350922173,1738199438697,-500.0,0.00019973,2]
[350922175,1738199438706,-500.0,0.00019973,2]
[350922177,1738199438716,-500.0,0.00019973,2]
[350922179,1738199438726,-151.21278051,0.00019973,2]
[350922181,1738199438735,-408.76231941,0.00019973,2]
[350922183,1738199438745,-389.87327567,0.00019973,2]
[350922185,1738199438757,-150.0,0.00019976,2]
[350922186,1738199438766,-150.0,0.00019978,2]
[350922187,1738199438776,-150.0,0.00019983,2]
[350922188,1738199438786,-150.0,0.00019986,2]
[350922189,1738199438796,-150.0,0.00019988,2]
[350922190,1738199438806,-150.0,0.00019988,2]
[350922191,1738199438815,-161.96816492,0.0001999,2]
[350922192,1738199438825,-150.0,0.00019991,2]
[350922193,1738199438878,-150.0,0.00019991,2]
[350922194,1738199438888,-150.0,0.00019994,2]
[350922195,1738199438898,-1000.0,0.00019994,2]
[350922196,1738199438907,-150.0,0.00019995,2]
[350922197,1738199438917,-150.0,0.00019995,2]
[350922198,1738199438927,-210.610783,0.00019995,2]
[350922199,1738199438936,-190.8722767,0.00019996,2]
[350922200,1738199438946,-347.4480528,0.00019996,2]
[350922201,1738199438955,-1793.0076432,0.00019996,2]
[350922202,1738199438964,-248.136291,0.00019996,2]
[350922203,1738199438974,-151.0,0.00019996,2]
[350922204,1738199438983,-374.3526236,0.00019996,2]
[350922205,1738199438992,-192.240388,0.00019996,2]
[350922206,1738199439003,-336.2065031,0.00019996,2]
[350922207,1738199439018,-192.240388,0.00019996,2]
[350922208,1738199439029,-1025.7184835,0.00019996,2]
[350922209,1738199439039,-560.2418892,0.00019996,2]
[350922210,1738199439048,-282.3905425,0.00019996,2]
[350922211,1738199439058,-330.9705223,0.00019996,2]
[350922212,1738199439067,-150.0,0.00019997,2]
[350922213,1738199439077,-309.20194245,0.00019999,2]
[350922214,1738199439086,-300.0,0.00019999,2]
[350922215,1738199439095,-666.0,0.00019999,2]
[350922216,1738199439105,-500.0,0.00019999,2]
[350922217,1738199439115,-999.0,0.00019999,2]
[350922218,1738199439124,-371.04,0.0002,2]
[350922219,1738199439136,-293.853064,0.0002,2]
[350922220,1738199439146,-501857.47219279,0.0002,2]
[350922221,1738199439288,-26708.42396041,0.0002,2]
[350922222,1738199439380,-252.90102083,0.00018899,2]
[350922223,1738199439392,-247.09897917,0.00018899,2]
[350922224,1738199439405,-195.46985747,0.00018899,2]
[350922225,1738199439415,-500.0,0.00019899,2]
[350922226,1738199439425,-506.64335937,0.00019965,2]
[350922227,1738199439434,-3416.58677151,0.0002,2]
[350922228,1738199439446,-7259.42425626,0.0002,2]
[350922229,1738199439457,-2219.533677,0.0002,2]
[350922230,1738199439468,-463950.64749458,0.0002,2]
[350922231,1738199439478,-4751834.907849,0.0002,15]
[350922232,1738199439489,-2729.40718883,0.0002,15]
[350922233,1738199439502,-4975.51485734,0.0002,15]
[350922234,1738199439523,-534.81,0.00019965,2]
[350922235,1738199439532,-538.51697681,0.0002,15]
[350922236,1738199439545,-2238.99168339,0.0002,15]
[350922237,1738199439556,-1827.4623212,0.0002,15]
[350922238,1738199439576,-3649.98797544,0.0002,15]
[350922239,1738199439591,-7251.71597944,0.0002,15]
[350922240,1738199439602,-274.176,0.0002,15]
[350922241,1738199439613,-1123.20136907,0.0002,15]
[350922242,1738199439624,-502404.90232821,0.0002,15]
[350922243,1738199439635,-642.12588414,0.0002,15]
[350922244,1738199439646,-517.7691157,0.0002,15]
[350922245,1738199439657,-12628.07052002,0.0002,15]
[350922246,1738199439667,-809.98594867,0.0002,15]
[350922247,1738199439678,-889.28858656,0.0002,15]
[350922248,1738199439759,-500.0,0.00019899,2]
[350922249,1738199439769,-3984.17345174,0.000199,2]
[350922250,1738199439780,-444.84736889,0.000199,2]
[350922251,1738199439791,-5331.98264759,0.000199,2]
[350922252,1738199439801,-1161.0,0.00019904,2]
[350922253,1738199439810,-21057.89735241,0.0002,15]
[350922254,1738199439825,-5028.29072221,0.0002,15]
[350922255,1738199439940,-28693.58285257,0.0002,15]
[350922256,1738199439950,-150.0,0.0002,2]
[350922257,1738199439960,-1393.32944538,0.0002,5]
[350922258,1738199439970,-7264.28529011,0.0002,14]
[350922259,1738199439999,-743.2500025,0.00019322,2]
[350922260,1738199440012,-363.7499975,0.00019322,2]
[350922261,1738199440021,-11204.94290852,0.0002,14]
[350922262,1738199440031,-152542.16963719,0.0002,30]
[350922263,1738199440040,-2778.90438263,0.0002,7]
[350922264,1738199440049,-2854.772,0.0002,2]
[350922265,1738199440058,-796.34286671,0.0002,7]
[350922266,1738199440068,-487.8,0.0002,2]
[350922267,1738199440077,-1800.0,0.0002,21]
[350922268,1738199440086,-34421.9670024,0.0002,3]
[350922271,1738199442716,-306.459997,0.00019178,2]
[350922272,1738199442776,-193.540003,0.00019178,2]
[350922273,1738199442786,-500.0,0.00019315,2]
[350922274,1738199442795,-500.0,0.00019452,2]
[350922275,1738199442805,-500.0,0.00019589,2]
[350922276,1738199442815,-500.0,0.00019726,2]
[350922277,1738199442825,-500.0,0.00019863,2]
[350922278,1738199442835,-177.0784951,0.000199,3]
[350922279,1738199442845,-158.24717016,0.00019965,2]
[350922280,1738199442855,-4485.8060625,0.0002,3]
[350922281,1738199442869,-25265.77774051,0.0002,3]
[350922282,1738199442881,-1086.79235457,0.0002,3]
[350922283,1738199442893,-14679.74504269,0.0002,3]
[350922284,1738199442904,-3908.5,0.0002,2]
[350922285,1738199442913,-2000.0,0.0002,2]
[350922286,1738199442924,-2000.0,0.0002,2]
[350922287,1738199442935,-181.495212,0.0002,2]
[350922288,1738199442945,-151.0,0.0002,2]
[350922289,1738199442955,-151.0,0.0002,2]
[350922290,1738199442964,-151.0,0.0002,2]
[350922291,1738199442977,-151.0,0.0002,2]
[350922292,1738199442987,-151.0,0.0002,2]
[350922293,1738199442998,-222.48926,0.0002,2]
[350922294,1738199443011,-250.0,0.0002,2]
[350922295,1738199443020,-588.08082749,0.0002,15]
[350922296,1738199443030,-319.8,0.0002,2]
[350922297,1738199443040,-500.0,0.0002,2]
[350922298,1738199443050,-500.0,0.0002,2]
[350922299,1738199443060,-500.0,0.0002,2]
[350922300,1738199443070,-500.0,0.0002,2]
[350922302,1738199443079,-505.0,0.0002,2]
[350922304,1738199443089,-151.0,0.0002,2]
[350922306,1738199443099,-212.153901,0.0002,2]
[350922308,1738199443108,-212.153901,0.0002,2]
[350922310,1738199443118,-212.153901,0.0002,2]
[350922312,1738199443127,-212.153901,0.0002,2]
[350922314,1738199443138,-212.153901,0.0002,2]
[350922315,1738199443147,-212.153901,0.0002,2]
[350922317,1738199443164,-212.153901,0.0002,2]
[350922320,1738199443176,-212.153901,0.0002,2]
[350922322,1738199443187,-151.0,0.0002,2]
[350922324,1738199443198,-151.0,0.0002,2]
[350922326,1738199443209,-151.0,0.0002,2]
[350922328,1738199443220,-151.0,0.0002,2]
[350922329,1738199443231,-151.0,0.0002,2]
[350922332,1738199443241,-153.760745,0.0002,2]
[350922334,1738199443250,-151.0,0.0002,2]
[350922336,1738199443261,-205.92,0.0002,2]
[350922338,1738199443271,-151.0,0.0002,2]
[350922340,1738199443281,-151.0,0.0002,2]
[350922342,1738199443290,-151.0,0.0002,2]
[350922344,1738199443299,-151.0,0.0002,2]
[350922346,1738199443309,-500.0,0.0002,2]
[350922348,1738199443319,-500.0,0.0002,2]
[350922350,1738199443329,-500.0,0.0002,2]
[350922352,1738199443340,-500.0,0.0002,2]
[350922354,1738199443350,-500.0,0.0002,2]
[350922356,1738199443360,-500.0,0.0002,2]
[350922357,1738199443371,-500.0,0.0002,2]
[350922358,1738199443381,-500.0,0.0002,2]
[350922359,1738199443390,-500.0,0.0002,2]
[350922360,1738199443400,-500.0,0.0002,2]
[350922361,1738199443409,-500.0,0.0002,2]
[350922362,1738199443419,-500.0,0.0002,2]
[350922363,1738199443428,-774.0,0.0002,2]
[350922364,1738199443438,-151.0,0.0002,2]
[350922365,1738199443448,-296.0,0.0002,2]
[350922366,1738199443458,-500.0,0.0002,2]
[350922367,1738199443467,-500.0,0.0002,2]
[350922368,1738199443477,-500.0,0.0002,2]
[350922369,1738199443487,-500.0,0.0002,2]
[350922370,1738199443496,-500.0,0.0002,2]
[350922371,1738199443506,-500.0,0.0002,2]
[350922372,1738199443516,-500.0,0.0002,2]
[350922373,1738199443526,-500.0,0.0002,2]
[350922374,1738199443536,-500.0,0.0002,2]
[350922375,1738199443545,-500.0,0.0002,2]
[350922376,1738199443554,-500.0,0.0002,2]
[350922377,1738199443563,-500.0,0.0002,2]
[350922378,1738199443573,-500.0,0.0002,2]
[350922379,1738199443583,-500.0,0.0002,2]
[350922380,1738199443593,-500.0,0.0002,2]
[350922381,1738199443603,-759.0,0.0002,2]
[350922382,1738199443613,-151.0,0.0002,2]
[350922383,1738199443623,-151.0,0.0002,2]
[350922384,1738199443633,-151.0,0.0002,2]
[350922385,1738199443643,-151.0,0.0002,2]
[350922386,1738199443653,-151.0,0.0002,2]
[350922387,1738199443663,-151.0,0.0002,2]
[350922388,1738199443677,-151.0,0.0002,2]
[350922389,1738199443686,-151.0,0.0002,2]
[350922390,1738199443697,-151.0,0.0002,2]
[350922391,1738199443707,-151.0,0.0002,2]
[350922392,1738199443717,-151.0,0.0002,2]
[350922393,1738199443727,-151.0,0.0002,2]
[350922394,1738199443738,-151.0,0.0002,2]
[350922395,1738199443748,-151.0,0.0002,2]
[350922396,1738199443758,-151.0,0.0002,2]
[350922397,1738199443768,-151.0,0.0002,2]
[350922398,1738199443778,-584.08120096,0.0002,4]
[350922399,1738199443791,-151.0,0.0002,2]
[350922400,1738199443801,-151.0,0.0002,2]
[350922401,1738199443811,-151.0,0.0002,2]
[350922402,1738199443822,-151.0,0.0002,2]
[350922403,1738199443832,-151.0,0.0002,2]
[350922404,1738199443844,-151.0,0.0002,2]
[350922405,1738199443855,-151.0,0.0002,2]
[350922406,1738199443866,-151.0,0.0002,2]
[350922407,1738199443875,-151.0,0.0002,2]
[350922408,1738199443885,-151.0,0.0002,2]
[350922409,1738199443894,-151.0,0.0002,2]
[350922410,1738199443904,-151.0,0.0002,2]
[350922411,1738199443914,-151.0,0.0002,2]
[350922412,1738199443926,-151.0,0.0002,2]
[350922413,1738199443935,-151.0,0.0002,2]
[350922414,1738199443947,-151.0,0.0002,2]
[350922415,1738199443957,-151.0,0.0002,2]
[350922416,1738199443966,-151.0,0.0002,2]
[350922417,1738199443977,-151.0,0.0002,2]
[350922418,1738199443990,-151.0,0.0002,2]
[350922419,1738199444000,-151.0,0.0002,2]
[350922420,1738199444011,-272.337688,0.0002,2]
[350922421,1738199444021,-172.70697433,0.0002,4]
[350922422,1738199444031,-150.0,0.0002,4]
[350922423,1738199444042,-150.0,0.0002,4]
[350922424,1738199444051,-308.7965491,0.0002,4]
[350922425,1738199444061,-650.81,0.0002,2]
[350922426,1738199444070,-826.82,0.0002,2]
[350922427,1738199444080,-1000.0,0.0002,2]
[350922428,1738199444089,-1000.0,0.0002,2]
[350922429,1738199444099,-1000.0,0.0002,2]
[350922430,1738199444109,-1000.0,0.0002,2]
[350922431,1738199444119,-1000.0,0.0002,2]
[350922432,1738199444129,-1000.0,0.0002,2]
[350922433,1738199444138,-1000.0,0.0002,2]
[350922434,1738199444154,-1000.0,0.0002,2]
[350922435,1738199444164,-1000.0,0.0002,2]
[350922436,1738199444174,-1000.0,0.0002,2]
[350922437,1738199444184,-285.90364675,0.0002,4]
[350922438,1738199444195,-1000.0,0.0002,2]
[350922439,1738199444207,-1000.0,0.0002,2]
[350922440,1738199444218,-1000.0,0.0002,2]
[350922441,1738199444228,-1124.14466469,0.0002,2]
[350922442,1738199444238,-150.0,0.0002,4]
[350922443,1738199444248,-150.0,0.0002,4]
[350922444,1738199444257,-1157.018692,0.0002,2]
[350922445,1738199444268,-1157.018692,0.0002,2]
[350922446,1738199444277,-1157.018692,0.0002,2]
[350922447,1738199444287,-1157.018692,0.0002,2]
[350922448,1738199444298,-1157.018692,0.0002,2]
[350922449,1738199444307,-1157.018692,0.0002,2]
[350922450,1738199444318,-150.0,0.0002,4]
[350922451,1738199444327,-1075.69492369,0.0002,2]
[350922452,1738199444343,-81.32376831,0.0002,2]
[350922453,1738199444352,-1157.018692,0.0002,2]
[350922454,1738199444362,-1052.82115221,0.0002,2]
[350922455,1738199444375,-104.19753979,0.0002,2]
[350922456,1738199444385,-1157.018692,0.0002,2]
[350922457,1738199444395,-1157.018692,0.0002,2]
[350922458,1738199444405,-1157.018692,0.0002,2]
[350922459,1738199444415,-1621.79632434,0.0002,2]
[350922460,1738199444428,-1334.26143895,0.0002,2]
[350922462,1738199445697,-500.0,0.00019899,2]
[350922463,1738199445708,-160.01782646,0.0002,4]
[350922465,1738199445718,-1293.02217354,0.0002,2]
[350922466,1738199445731,-1065.83165509,0.0002,2]
[350922467,1738199445822,-7641.14617137,0.0002,2]
[350922468,1738199445833,-10000.0,0.0002,2]
[350922469,1738199445842,-1653.83708527,0.0002,2]
[350922470,1738199445993,-1986.50441341,0.0002,2]
[350922471,1738199446055,-500.0,0.0002,2]
[350922476,1738199730669,771.54360395,0.00023,120]
[350922477,1738199731158,150.0,0.00020529,120]
[350922478,1738199763737,207.81620844,0.00023,120]
[350922479,1738199768668,150.0,0.00023,120]
[350922480,1738199790897,150.0,0.00021333,120]
[350922481,1738199828359,154.562219,0.0001178,2]
[350922482,1738199836960,159.979984,0.0001178,2]
[350922483,1738199841415,160.687533,0.0001178,2]
[350922484,1738199850823,150.0,0.00022074,120]
[350922485,1738199856277,259.0,0.00023,120]
[350922486,1738199863931,151.224045,0.0001178,2]
[350922487,1738199869542,500.0,0.00022739,120]
[350922488,1738199869797,356.10620042,0.00022739,120]
[350922489,1738199910738,150.0,0.00021937,120]
[350922490,1738199963339,3286.21,0.00021917,120]
[350922491,1738199963592,3286.21,0.00021917,120]
[350922492,1738199963919,3286.21,0.00021917,120]
[350922493,1738199964214,3286.21,0.00021917,120]
[350922494,1738199964470,3286.21,0.00021917,120]
[350922495,1738199964736,3286.21,0.00021917,120]
[350922496,1738199965057,3286.21,0.00021917,120]
[350922497,1738199965300,3286.21,0.00021917,120]
[350922498,1738199965717,3286.21,0.00021917,120]
[350922499,1738199965832,3286.21,0.00021917,120]
[350922500,1738199966074,3286.21,0.00021917,120]
[350922501,1738199966318,3286.21,0.00021917,120]
[350922502,1738199966584,3286.21,0.00021917,120]
[350922503,1738199966832,3286.21,0.00021917,120]
[350922504,1738199967078,3286.21,0.00021917,120]
[350922505,1738199967327,3286.21,0.00021917,120]
[350922506,1738199967619,3286.21,0.00021917,120]
[350922507,1738199967874,3286.21,0.00021917,120]
[350922508,1738199968132,3286.21,0.00021917,120]
[350922509,1738199968377,3286.21,0.00021917,120]
[350922510,1738199968647,3286.21,0.00021917,120]
[350922511,1738199968895,3286.21,0.00021917,120]
[350922512,1738199969147,3286.21,0.00021917,120]
[350922513,1738199969375,3286.41118705,0.00021917,120]
[350922514,1738199971287,150.0,0.00021244,120]
[350922515,1738200003227,3066.40646793,0.00023,120]
[350922516,1738200004066,1641.68727815,0.00023,120]
[350922517,1738200008488,2226.74132282,0.00019999,120]
[350922518,1738200030727,150.0,0.0002054,120]
[350922519,1738200090760,150.0,0.00022446,120]
[350922521,1738200150842,150.0,0.00022642,120]
[350922522,1738200190632,500.0,0.00022843,120]
[350922523,1738200196014,2000.0,0.00022843,120]
[350922524,1738200202098,500.0,0.00022843,120]
[350922525,1738200213355,200.0,0.00022843,120]
[350922526,1738200227811,165.13,0.00010137,2]
[350922528,1738200260994,201800.0,0.00023,120]
[350922529,1738200270806,150.0,0.00020947,120]
[350922530,1738200327641,929.89467804,0.00023,120]
[350922531,1738200331288,150.0,0.00021587,120]
[350922535,1738200344984,284.88747487,0.00022,120]
[350922536,1738200348618,1021.15,0.00011973,2]
[350922537,1738200390781,150.0,0.00021042,120]
[350922546,1738200432444,2311.34866594,0.00021,120]
[350922547,1738200433302,919.84212854,0.00022,120]
[350922548,1738200451008,150.0,0.00021088,120]
[350922549,1738200462896,1444.27318563,0.0001,2]
[350922550,1738200469289,397.44996123,0.0002,120]
[350922551,1738200472029,319.91011309,0.0002,120]
[350922552,1738200479001,1499.82269882,0.0001,2]
[350922553,1738200510758,150.0,0.00021051,120]
[350922554,1738200523180,202.0,0.0002,120]
[350922558,1738200525702,800.0,0.00021,120]
[350922559,1738200526104,389.9830964,0.00022,120]
[350922560,1738200526159,195.78,0.0002,120]
[350922561,1738200526193,420.53721035,0.00022,120]
[350922568,1738200570748,150.0,0.00021523,120]
[350922572,1738200605081,2140.0,0.00023,120]
[350922574,1738200630721,150.0,0.0002084,120]
[350922579,1738200632280,-170.0,0.00013699,2]
[350922580,1738200632291,-150.0,0.00014018,2]
[350922581,1738200632301,-150.0,0.0001491,2]
[350922582,1738200632311,-150.0,0.00015068,2]
[350922583,1738200632322,-707.29,0.00016205,2]
[350922584,1738200632332,-376.41,0.00016255,2]
[350922585,1738200632343,-894.99911698,0.0001649,2]
[350922586,1738200632354,-198.14,0.00016712,2]
[350922587,1738200632364,-380.08,0.0001716,2]
[350922588,1738200632373,-2329.83,0.00017569,2]
[350922589,1738200632383,-181.0,0.00017677,2]
[350922590,1738200632393,-300.0,0.00017677,2]
[350922591,1738200632403,-1135.75,0.00017678,2]
[350922592,1738200632413,-599.69,0.00017678,2]
[350922593,1738200632423,-167.76,0.00017678,2]
[350922594,1738200632434,-375.15,0.00017747,2]
[350922595,1738200632444,-368.53,0.00017747,2]
[350922596,1738200632454,-333.9271298,0.00017747,2]
[350922600,1738200637820,-43.6028702,0.00017747,2]
[350922601,1738200637831,-374.34,0.00017747,2]
[350922602,1738200637843,-375.31,0.00017747,2]
[350922603,1738200637855,-368.59,0.00017747,2]
[350922605,1738200637869,-375.56,0.00017748,2]
[350922606,1738200637882,-381.91,0.00017748,2]
[350922607,1738200637894,-82.1271298,0.00017748,2]
[350922608,1738200638056,-285.7128702,0.00017748,2]
[350922609,1738200638069,-120.54313927,0.00017748,2]
[350922610,1738200638084,-254.02686073,0.00017748,2]
[350922611,1738200638097,-284.2023298,0.00017748,2]
[350922612,1738200638297,-94.1676702,0.00017748,2]
[350922613,1738200638309,-251.84326708,0.00017748,2]
[350922654,1738200640067,-121.58673292,0.00017748,2]
[350922655,1738200640080,-161.81,0.00017754,2]
[350922656,1738200640093,-161.81,0.00017772,2]
[350922657,1738200640110,-174.77,0.00017777,2]
[350922658,1738200640121,-1000.0,0.00017788,2]
[350922659,1738200640135,-161.81,0.0001779,2]
[350922660,1738200640146,-161.81,0.00017807,2]
[350922661,1738200640158,-250.0,0.0001781,2]
[350922662,1738200640169,-200.0,0.00017813,2]
[350922663,1738200640180,-161.81,0.00017825,2]
[350922664,1738200640193,-594.51,0.0001784,2]
[350922665,1738200640203,-161.81,0.00017843,2]
[350922666,1738200640215,-1412.39290539,0.000179,2]
[350922667,1738200640231,-280.69220524,0.000179,2]
[350922685,1738200643017,-1135.73136266,0.000179,2]
[350922686,1738200643031,-525.38211222,0.000179,2]
[350922687,1738200643047,-7632.81564288,0.000179,2]
[350922688,1738200643059,-319.2,0.00017978,2]
[350922689,1738200643071,-15122.21244917,0.00018,2]
[350922690,1738200643083,-1135.83826899,0.00018,2]
[350922691,1738200643094,-4441.33887506,0.00018,2]
[350922692,1738200643108,-4726.09571287,0.00018,2]
[350922726,1738200646052,-377.1,0.00017759,2]
[350922727,1738200646064,-6916.30830371,0.00018,2]
[350922729,1738200690730,150.0,0.00022116,120]
[350922730,1738200750734,150.0,0.00022379,120]
[350922731,1738200792209,500.0,0.00022931,120]
[350922732,1738200796482,2000.0,0.00022931,120]
[350922733,1738200802746,500.0,0.00022931,120]
[350922734,1738200810720,150.0,0.00020536,120]
[350922735,1738200812367,200.0,0.00022931,120]
[350922736,1738200870787,150.0,0.00021345,120]
[350922737,1738200931273,150.0,0.0002189,120]
[350922787,1738200936107,929.72,0.00023,120]
[350922904,1738200990746,150.0,0.00020697,120]
[350922905,1738201051284,150.0,0.00021099,120]
[350922906,1738201087742,263.52,0.00010137,2]
[350922908,1738201110977,150.0,0.00020695,120]
[350922910,1738201170757,150.0,0.00021238,120]
[350922912,1738201230777,150.0,0.00020566,120]
[350922913,1738201290798,150.0,0.00021957,120]
[350922914,1738201328544,355.0,0.00023,120]
[350922915,1738201350784,150.0,0.00021441,120]
[350922916,1738201392601,500.0,0.00023,120]
[350922917,1738201396101,2000.0,0.00023,120]
[350922918,1738201401365,274.909092,0.00023,120]
[350922919,1738201410736,150.0,0.0002133,120]
[350922920,1738201411832,200.0,0.00023,120]
[350922921,1738201470721,150.0,0.00022915,120]
[350922922,1738201530712,150.0,0.00020544,120]
[350922923,1738201590753,150.0,0.00022357,120]
[350922924,1738201650761,150.0,0.0002288,120]
[350922925,1738201710749,150.0,0.000218,120]
[350922926,1738201770767,150.0,0.00022386,120]
[350922927,1738201830778,150.0,0.00021444,120]
[350922936,1738201832140,-383.71474677,0.00013,2]
[350922937,1738201832354,-166.28525323,0.00013,2]
[350922938,1738201832366,-291.0366,0.00013,2]
[350922939,1738201832381,-150.0,0.00013547,2]
[350922940,1738201832391,-99.59937428,0.00013803,2]
[350922941,1738201832427,-50.40062572,0.00013803,2]
[350922942,1738201832438,-590.73536889,0.00014173,2]
[350922943,1738201832447,-583.43589385,0.000142,2]
[350922944,1738201832457,-150.0,0.000143,2]
[350922945,1738201832467,-150.0,0.000143,2]
[350922946,1738201832478,-150.0,0.000143,2]
[350922947,1738201832487,-807.71,0.00014486,2]
[350922948,1738201832496,-600.0,0.00015,2]
[350922949,1738201832505,-250.0,0.00016075,2]
[350922950,1738201832516,-150.0,0.00016137,2]
[350922951,1738201832527,-23900.0,0.00016252,2]
[350922952,1738201832537,-593.67,0.00016307,2]
[350922953,1738201832547,-377.24,0.00016342,2]
[350922954,1738201832557,-379.05,0.00016517,2]
[350922955,1738201832567,-3173.16,0.00016519,2]
[350922956,1738201832577,-1000.0,0.00016679,2]
[350922957,1738201832587,-176.29,0.00016712,2]
[350922958,1738201832597,-807.71,0.0001675,2]
[350922959,1738201832608,-263.52,0.00016813,2]
[350922960,1738201832618,-380.49,0.00016853,2]
[350922961,1738201832628,-469.29,0.0001692,2]
[350922962,1738201832637,-178.81,0.00016993,2]
[350922963,1738201832647,-650.0,0.00017,2]
[350922964,1738201832657,-200.0,0.00017152,2]
[350922965,1738201832667,-500.0,0.00017288,2]
[350922966,1738201832677,-6939.0,0.0001729,2]
[350922967,1738201832687,-19855.98,0.00017293,2]
[350922968,1738201832696,-381.76,0.000175,2]
[350922969,1738201832706,-219.79363165,0.00017642,2]
[350922970,1738201832717,-198.73686169,0.00017748,2]
[350922971,1738201832727,-500.0,0.00017748,2]
[350922972,1738201832736,-251.07168546,0.0001783,2]
[350922973,1738201832746,-300.0,0.0001789,2]
[350922974,1738201832757,-298.12186108,0.000179,2]
[350922975,1738201832767,-2410.07054,0.0001791,2]
[350922976,1738201832777,-2410.07054,0.0001791,2]
[350922977,1738201832787,-557163.84566349,0.0001792,2]
[350922978,1738201832797,-161.28,0.0001792,2]
[350922979,1738201832807,-2410.07054,0.0001792,2]
[350922980,1738201832817,-363.49364,0.0001792,2]
[350922981,1738201832826,-296.23207215,0.0001793,2]
[350922982,1738201832836,-2410.07054,0.0001793,2]
[350922983,1738201832845,-2410.07054,0.0001793,2]
[350922984,1738201832855,-363.49363,0.0001793,2]
[350922985,1738201832866,-1578.635,0.00017967,2]
[350922986,1738201832876,-173.423,0.00017967,2]
[350922987,1738201832886,-363.49364,0.0001797,2]
[350922988,1738201832901,-3805.37223126,0.00017999,2]
[350922989,1738201832911,-28909.33017605,0.00018,2]
[350922990,1738201832921,-1033.88062893,0.00018,2]
[350922991,1738201832931,-4153.1723844,0.00018,2]
[350922992,1738201833089,-793.07877249,0.00018,2]
[350922993,1738201833146,-671.44843797,0.00018,2]
[350922994,1738201833158,-205.47950807,0.00018,2]
[350922995,1738201833167,-363.49363,0.0001801,2]
[350922996,1738201833178,-230.57772396,0.0001805,2]
[350922997,1738201833190,-132.91591604,0.0001805,2]
[350922998,1738201833200,-165.2308056,0.00018065,2]
[350922999,1738201833210,-289.06327136,0.0001808,2]